[Event "December 12 Late 2023"]
[Site "https://www.chess.com"]
[Date "2023.12.12"]
[Round "3"]
[White "youngdinousaur"]
[Black "Liu, Casper"]
[Result "0-1"]
[Board "133"]
[TimeControl "180+1"]
[BlackFideId "1454153"]
[WhiteElo "2246"]
[BlackElo "2436"]
[BlackTeam "DEN"]
[WhiteClock "0:00:09"]
[BlackClock "0:00:18"]

1. d4 {[%clk 0:03:00]}  f5 {[%clk 0:02:53]} 2. Bg5 {[%clk 0:02:58]}  Nf6 {[%clk 0:02:53]} 3. Bxf6 {[%clk 0:02:53]}  exf6 {[%clk 0:02:51]} 4. e3 {[%clk 0:02:49]}  d5 {[%clk 0:02:52]} 5. c4 {[%clk 0:02:49]}  Bb4+ {[%clk 0:02:45]} 6. Nc3 {[%clk 0:02:48]}  O-O {[%clk 0:02:44]} 7. Qb3 {[%clk 0:02:45]}  Bxc3+ {[%clk 0:02:40]} 8. bxc3 {[%clk 0:02:46]}  dxc4 {[%clk 0:02:39]} 9. Bxc4+ {[%clk 0:02:46]}  Kh8 {[%clk 0:02:40]} 10. Ne2 {[%clk 0:02:41]}  Nc6 {[%clk 0:02:40]} 11. Qb2 {[%clk 0:02:31]}  Na5 {[%clk 0:02:36]} 12. Bd3 {[%clk 0:02:28]}  Qd5 {[%clk 0:02:29]} 13. O-O {[%clk 0:02:27]}  Nc4 {[%clk 0:02:30]} 14. Qb4 {[%clk 0:02:19]}  Nd6 {[%clk 0:02:12]} 15. c4 {[%clk 0:02:16]}  a5 {[%clk 0:02:10]} 16. Qa3 {[%clk 0:02:08]}  Qf7 {[%clk 0:02:05]} 17. c5 {[%clk 0:02:06]}  Ne4 {[%clk 0:02:05]} 18. Rfc1 {[%clk 0:01:56]}  Be6 {[%clk 0:02:02]} 19. Qb2 {[%clk 0:01:53]}  c6 {[%clk 0:02:01]} 20. a3 {[%clk 0:01:46]}  a4 {[%clk 0:01:58]} 21. Qb4 {[%clk 0:01:42]}  h5 {[%clk 0:01:51]} 22. Rab1 {[%clk 0:01:42]}  Bb3 {[%clk 0:01:51]} 23. Bc4 {[%clk 0:01:39]}  Bxc4 {[%clk 0:01:47]} 24. Rxc4 {[%clk 0:01:40]}  h4 {[%clk 0:01:42]} 25. Rc2 {[%clk 0:01:37]}  h3 {[%clk 0:01:15]} 26. f3 {[%clk 0:01:19]}  Ng5 {[%clk 0:01:07]} 27. Ng3 {[%clk 0:01:08]}  hxg2 {[%clk 0:01:01]} 28. Kxg2 {[%clk 0:01:09]}  Qd5 {[%clk 0:01:01]} 29. Rf2 {[%clk 0:01:01]}  Rae8 {[%clk 0:00:56]} 30. Re1 {[%clk 0:00:51]}  f4 {[%clk 0:00:44]} 31. e4 {[%clk 0:00:45]}  Qd7 {[%clk 0:00:42]} 32. Nf5 {[%clk 0:00:40]}  g6 {[%clk 0:00:42]} 33. h4 {[%clk 0:00:37]}  gxf5 {[%clk 0:00:24]} 34. hxg5 {[%clk 0:00:37]}  fxe4 {[%clk 0:00:25]} 35. Rh1+ {[%clk 0:00:23]}  Kg7 {[%clk 0:00:24]} 36. gxf6+ {[%clk 0:00:22]}  Rxf6 {[%clk 0:00:24]} 37. fxe4 {[%clk 0:00:17]}  Qg4+ {[%clk 0:00:19]} 38. Kf1 {[%clk 0:00:18]}  Qd1+ {[%clk 0:00:19]} 39. Qe1 {[%clk 0:00:18]}  Qxe1+ {[%clk 0:00:19]} 40. Kxe1 {[%clk 0:00:19]}  Rxe4+ {[%clk 0:00:19]} 41. Kf1 {[%clk 0:00:19]}  Rxd4 {[%clk 0:00:19]} 42. Rb2 {[%clk 0:00:16]}  Rf7 {[%clk 0:00:18]} 43. Rg1+ {[%clk 0:00:15]}  Kf6 {[%clk 0:00:19]} 44. Rgg2 {[%clk 0:00:15]}  Rc4 {[%clk 0:00:19]} 45. Rgc2 {[%clk 0:00:14]}  Rxc2 {[%clk 0:00:19]} 46. Rxc2 {[%clk 0:00:15]}  Ke5 {[%clk 0:00:20]} 47. Kf2 {[%clk 0:00:14]}  Kd4 {[%clk 0:00:20]} 48. Kf3 {[%clk 0:00:15]}  Kd3 {[%clk 0:00:19]} 49. Rb2 {[%clk 0:00:15]}  Kc4 {[%clk 0:00:17]} 50. Rc2+ {[%clk 0:00:15]}  Kb3 {[%clk 0:00:18]} 51. Rd2 {[%clk 0:00:11]}  Kxa3 {[%clk 0:00:18]} 52. Rd4 {[%clk 0:00:09]}  Kb3 {[%clk 0:00:18]} 0-1

[Event "December 12 Late 2023"]
[Site "https://www.chess.com"]
[Date "2023.12.12"]
[Round "3"]
[White "Sultanbek, Zeinep"]
[Black "Buchenau, Frank"]
[Result "0-1"]
[Board "134"]
[TimeControl "180+1"]
[WhiteFideId "13710419"]
[BlackFideId "4604350"]
[WhiteElo "2238"]
[BlackElo "2420"]
[WhiteTeam "KAZ"]
[BlackTeam "GER"]
[WhiteClock "0:00:54"]
[BlackClock "0:01:10"]

1. d4 {[%clk 0:02:45]}  e6 {[%clk 0:02:59]} 2. c4 {[%clk 0:02:45]}  Nf6 {[%clk 0:02:59]} 3. Nf3 {[%clk 0:02:45]}  b6 {[%clk 0:02:58]} 4. g3 {[%clk 0:02:45]}  Bb7 {[%clk 0:02:58]} 5. Bg2 {[%clk 0:02:45]}  Be7 {[%clk 0:02:58]} 6. O-O {[%clk 0:02:45]}  O-O {[%clk 0:02:58]} 7. Nc3 {[%clk 0:02:45]}  Ne4 {[%clk 0:02:56]} 8. Re1 {[%clk 0:02:39]}  Nxc3 {[%clk 0:02:54]} 9. bxc3 {[%clk 0:02:39]}  Nc6 {[%clk 0:02:52]} 10. d5 {[%clk 0:02:37]}  Na5 {[%clk 0:02:48]} 11. Qd3 {[%clk 0:02:29]}  Ba6 {[%clk 0:02:40]} 12. Nd2 {[%clk 0:02:04]}  exd5 {[%clk 0:02:36]} 13. Qxd5 {[%clk 0:02:02]}  Bb7 {[%clk 0:02:31]} 14. Qd3 {[%clk 0:01:57]}  Bxg2 {[%clk 0:02:30]} 15. Kxg2 {[%clk 0:01:58]}  Qc8 {[%clk 0:02:17]} 16. Ne4 {[%clk 0:01:53]}  Qa6 {[%clk 0:02:11]} 17. Bf4 {[%clk 0:01:48]}  d6 {[%clk 0:02:05]} 18. Nd2 {[%clk 0:01:43]}  Rad8 {[%clk 0:02:01]} 19. c5 {[%clk 0:01:36]}  Qb7+ {[%clk 0:01:55]} 20. Kg1 {[%clk 0:01:26]}  dxc5 {[%clk 0:01:55]} 21. Qc2 {[%clk 0:01:25]}  Rfe8 {[%clk 0:01:44]} 22. c4 {[%clk 0:01:20]}  Bf6 {[%clk 0:01:43]} 23. Rad1 {[%clk 0:01:20]}  Nc6 {[%clk 0:01:22]} 24. Ne4 {[%clk 0:01:16]}  Be7 {[%clk 0:01:19]} 25. Nc3 {[%clk 0:01:00]}  Nd4 {[%clk 0:01:15]} 26. Qb2 {[%clk 0:01:00]}  Bf6 {[%clk 0:01:14]} 27. e4 {[%clk 0:00:54]}  Nf3+ {[%clk 0:01:10]} 0-1

[Event "December 12 Late 2023"]
[Site "https://www.chess.com"]
[Date "2023.12.12"]
[Round "3"]
[White "Cueto, Jonny"]
[Black "Haszon, David"]
[Result "1-0"]
[Board "138"]
[TimeControl "180+1"]
[WhiteFideId "3300145"]
[BlackFideId "733610"]
[WhiteElo "2223"]
[BlackElo "2393"]
[WhiteTeam "BOL"]
[BlackTeam "HUN"]
[WhiteClock "0:01:36"]
[BlackClock "0:01:34"]

1. d4 {[%clk 0:03:00]}  d5 {[%clk 0:03:00]} 2. Bf4 {[%clk 0:03:00]}  e6 {[%clk 0:02:59]} 3. e3 {[%clk 0:03:00]}  c5 {[%clk 0:02:59]} 4. Nf3 {[%clk 0:03:00]}  Nc6 {[%clk 0:03:00]} 5. Nbd2 {[%clk 0:03:00]}  Nf6 {[%clk 0:02:59]} 6. c3 {[%clk 0:03:00]}  Bd6 {[%clk 0:02:59]} 7. Ne5 {[%clk 0:03:00]}  O-O {[%clk 0:02:53]} 8. Bd3 {[%clk 0:03:00]}  Qe7 {[%clk 0:02:49]} 9. Qf3 {[%clk 0:02:58]}  Nd7 {[%clk 0:02:48]} 10. Qh3 {[%clk 0:02:43]}  f5 {[%clk 0:02:45]} 11. Ndf3 {[%clk 0:02:34]}  Bxe5 {[%clk 0:02:43]} 12. Nxe5 {[%clk 0:02:33]}  Ndxe5 {[%clk 0:02:43]} 13. dxe5 {[%clk 0:02:32]}  c4 {[%clk 0:02:28]} 14. Bc2 {[%clk 0:02:29]}  Bd7 {[%clk 0:02:23]} 15. g4 {[%clk 0:02:29]}  g5 {[%clk 0:02:16]} 16. gxf5 {[%clk 0:02:18]}  gxf4 {[%clk 0:02:15]} 17. Rg1+ {[%clk 0:02:16]}  Kf7 {[%clk 0:01:48]} 18. Qxh7+ {[%clk 0:01:44]}  Ke8 {[%clk 0:01:47]} 19. Rg7 {[%clk 0:01:44]}  Rf7 {[%clk 0:01:42]} 20. f6 {[%clk 0:01:42]}  Qf8 {[%clk 0:01:41]} 21. Bg6 {[%clk 0:01:41]}  Nd8 {[%clk 0:01:34]} 22. Rg8 {[%clk 0:01:36]} 1-0

[Event "December 12 Late 2023"]
[Site "https://www.chess.com"]
[Date "2023.12.12"]
[Round "3"]
[White "Fernandez Hernandez, Gerardo"]
[Black "Kostiukov, Alexandr"]
[Result "1-0"]
[Board "139"]
[TimeControl "180+1"]
[WhiteFideId "2207400"]
[BlackFideId "14108100"]
[WhiteElo "2222"]
[BlackElo "2388"]
[WhiteTeam "ESP"]
[BlackTeam "UKR"]
[WhiteClock "0:00:34"]
[BlackClock "0:00:00"]

1. e4 {[%clk 0:03:00]}  c5 {[%clk 0:02:54]} 2. d3 {[%clk 0:03:01]}  g6 {[%clk 0:02:51]} 3. g3 {[%clk 0:02:59]}  Bg7 {[%clk 0:02:51]} 4. Bg2 {[%clk 0:03:00]}  Nc6 {[%clk 0:02:51]} 5. f4 {[%clk 0:03:00]}  e6 {[%clk 0:02:48]} 6. Nf3 {[%clk 0:03:00]}  d5 {[%clk 0:02:48]} 7. O-O {[%clk 0:03:00]}  Nge7 {[%clk 0:02:44]} 8. e5 {[%clk 0:02:59]}  Nf5 {[%clk 0:02:28]} 9. g4 {[%clk 0:02:54]}  Nh4 {[%clk 0:02:25]} 10. Nxh4 {[%clk 0:02:47]}  Qxh4 {[%clk 0:02:24]} 11. c3 {[%clk 0:02:47]}  Nxe5 {[%clk 0:01:38]} 12. fxe5 {[%clk 0:02:36]}  Bxe5 {[%clk 0:01:38]} 13. Bf4 {[%clk 0:02:36]}  Bg7 {[%clk 0:01:31]} 14. Qf3 {[%clk 0:02:27]}  O-O {[%clk 0:00:58]} 15. Bd6 {[%clk 0:02:24]}  Bd7 {[%clk 0:00:58]} 16. Bxc5 {[%clk 0:02:17]}  Bb5 {[%clk 0:00:50]} 17. Bxf8 {[%clk 0:02:15]}  Rxf8 {[%clk 0:00:49]} 18. a4 {[%clk 0:02:11]}  Ba6 {[%clk 0:00:45]} 19. Nd2 {[%clk 0:02:10]}  e5 {[%clk 0:00:43]} 20. Rfe1 {[%clk 0:01:59]}  Rd8 {[%clk 0:00:22]} 21. Rf1 {[%clk 0:01:35]}  Rd7 {[%clk 0:00:20]} 22. Rae1 {[%clk 0:01:29]}  e4 {[%clk 0:00:20]} 23. dxe4 {[%clk 0:01:26]}  Bxf1 {[%clk 0:00:19]} 24. Rxf1 {[%clk 0:01:20]}  Be5 {[%clk 0:00:19]} 25. Qh3 {[%clk 0:01:00]}  Qe7 {[%clk 0:00:16]} 26. exd5 {[%clk 0:00:56]}  f6 {[%clk 0:00:07]} 27. Qd3 {[%clk 0:00:48]}  Kg7 {[%clk 0:00:05]} 28. Nf3 {[%clk 0:00:47]}  Bf4 {[%clk 0:00:03]} 29. Re1 {[%clk 0:00:47]}  Qc5+ {[%clk 0:00:03]} 30. Nd4 {[%clk 0:00:43]}  Be5 {[%clk 0:00:00]} 31. Kh1 {[%clk 0:00:34]} 1-0

[Event "December 12 Late 2023"]
[Site "https://www.chess.com"]
[Date "2023.12.12"]
[Round "3"]
[White "CarlMagnuson"]
[Black "Skaric, Djuro"]
[Result "1-0"]
[Board "140"]
[TimeControl "180+1"]
[BlackFideId "934569"]
[WhiteElo "2220"]
[BlackElo "2381"]
[BlackTeam "SRB"]
[WhiteClock "0:01:49"]
[BlackClock "0:01:05"]

1. e4 {[%clk 0:02:57]}  d6 {[%clk 0:03:00]} 2. d4 {[%clk 0:02:56]}  g6 {[%clk 0:03:01]} 3. f4 {[%clk 0:02:56]}  Bg7 {[%clk 0:03:02]} 4. Nf3 {[%clk 0:02:56]}  Nf6 {[%clk 0:03:03]} 5. Bd3 {[%clk 0:02:56]}  O-O {[%clk 0:03:02]} 6. O-O {[%clk 0:02:56]}  Bg4 {[%clk 0:02:51]} 7. Kh1 {[%clk 0:02:52]}  Nc6 {[%clk 0:02:50]} 8. c3 {[%clk 0:02:52]}  e5 {[%clk 0:02:49]} 9. d5 {[%clk 0:02:49]}  Ne7 {[%clk 0:02:48]} 10. fxe5 {[%clk 0:02:49]}  dxe5 {[%clk 0:02:48]} 11. Qe1 {[%clk 0:02:49]}  Nh5 {[%clk 0:02:41]} 12. Be3 {[%clk 0:02:44]}  f5 {[%clk 0:02:39]} 13. Nbd2 {[%clk 0:02:42]}  f4 {[%clk 0:02:35]} 14. Bf2 {[%clk 0:02:42]}  h6 {[%clk 0:02:34]} 15. Nc4 {[%clk 0:02:32]}  Bxf3 {[%clk 0:02:32]} 16. gxf3 {[%clk 0:02:32]}  Nc8 {[%clk 0:02:31]} 17. Rg1 {[%clk 0:02:30]}  Kh7 {[%clk 0:02:30]} 18. Qf1 {[%clk 0:02:19]}  Nd6 {[%clk 0:02:25]} 19. Qh3 {[%clk 0:02:18]}  Nxc4 {[%clk 0:01:50]} 20. Bxc4 {[%clk 0:02:17]}  Qd6 {[%clk 0:01:50]} 21. Rg2 {[%clk 0:02:08]}  b6 {[%clk 0:01:49]} 22. Rag1 {[%clk 0:02:07]}  Rf6 {[%clk 0:01:48]} 23. Bh4 {[%clk 0:02:05]}  g5 {[%clk 0:01:42]} 24. Bxg5 {[%clk 0:02:05]}  hxg5 {[%clk 0:01:40]} 25. Qxh5+ {[%clk 0:02:04]}  Rh6 {[%clk 0:01:39]} 26. Qxg5 {[%clk 0:02:03]}  Bf6 {[%clk 0:01:38]} 27. Qf5+ {[%clk 0:01:55]}  Kh8 {[%clk 0:01:38]} 28. Rg6 {[%clk 0:01:55]}  Qf8 {[%clk 0:01:36]} 29. d6 {[%clk 0:01:51]}  cxd6 {[%clk 0:01:24]} 30. Rxh6+ {[%clk 0:01:51]}  Qxh6 {[%clk 0:01:22]} 31. Rg6 {[%clk 0:01:51]}  Qh4 {[%clk 0:01:10]} 32. Qxf6+ {[%clk 0:01:50]}  Qxf6 {[%clk 0:01:10]} 33. Rxf6 {[%clk 0:01:50]}  Rc8 {[%clk 0:01:05]} 34. Bd5 {[%clk 0:01:49]} 1-0

[Event "December 12 Late 2023"]
[Site "https://www.chess.com"]
[Date "2023.12.12"]
[Round "3"]
[White "Buenafe Moya, Javier"]
[Black "Curtis, John"]
[Result "1-0"]
[Board "143"]
[TimeControl "180+1"]
[WhiteFideId "2206412"]
[BlackFideId "3200256"]
[WhiteElo "2371"]
[BlackElo "2199"]
[WhiteTeam "ESP"]
[BlackTeam "AUS"]
[WhiteClock "0:01:01"]
[BlackClock "0:00:00"]

1. c4 {[%clk 0:02:53]}  Nf6 {[%clk 0:02:58]} 2. Nc3 {[%clk 0:02:49]}  e5 {[%clk 0:02:57]} 3. Nf3 {[%clk 0:02:48]}  Nc6 {[%clk 0:02:54]} 4. e4 {[%clk 0:02:47]}  d6 {[%clk 0:02:49]} 5. g3 {[%clk 0:02:45]}  Bg4 {[%clk 0:02:49]} 6. h3 {[%clk 0:02:44]}  Bxf3 {[%clk 0:02:49]} 7. Qxf3 {[%clk 0:02:44]}  Nd4 {[%clk 0:02:49]} 8. Qd1 {[%clk 0:02:45]}  Nd7 {[%clk 0:02:49]} 9. Bg2 {[%clk 0:02:42]}  Nc5 {[%clk 0:02:49]} 10. d3 {[%clk 0:02:41]}  Be7 {[%clk 0:02:48]} 11. O-O {[%clk 0:02:41]}  O-O {[%clk 0:02:46]} 12. Be3 {[%clk 0:02:40]}  a5 {[%clk 0:02:42]} 13. f4 {[%clk 0:02:40]}  c6 {[%clk 0:02:35]} 14. f5 {[%clk 0:02:34]}  Bg5 {[%clk 0:02:34]} 15. Bf2 {[%clk 0:02:31]}  a4 {[%clk 0:02:11]} 16. Ne2 {[%clk 0:02:21]}  Nxe2+ {[%clk 0:02:05]} 17. Qxe2 {[%clk 0:02:21]}  Qa5 {[%clk 0:01:52]} 18. Rab1 {[%clk 0:02:19]}  Qb4 {[%clk 0:01:43]} 19. d4 {[%clk 0:02:17]}  exd4 {[%clk 0:01:35]} 20. Bxd4 {[%clk 0:02:16]}  Nd7 {[%clk 0:01:09]} 21. Kh2 {[%clk 0:02:08]}  Rfe8 {[%clk 0:01:03]} 22. b3 {[%clk 0:01:59]}  a3 {[%clk 0:00:57]} 23. Rbd1 {[%clk 0:01:54]}  Ne5 {[%clk 0:00:49]} 24. Qf2 {[%clk 0:01:40]}  c5 {[%clk 0:00:41]} 25. Ba1 {[%clk 0:01:37]}  Rad8 {[%clk 0:00:36]} 26. Rd5 {[%clk 0:01:36]}  b5 {[%clk 0:00:29]} 27. cxb5 {[%clk 0:01:32]}  Qxb5 {[%clk 0:00:29]} 28. Rfd1 {[%clk 0:01:28]}  Bf6 {[%clk 0:00:19]} 29. Qf4 {[%clk 0:01:22]}  Qb8 {[%clk 0:00:14]} 30. g4 {[%clk 0:01:21]}  h6 {[%clk 0:00:14]} 31. Kg3 {[%clk 0:01:19]}  Bg5 {[%clk 0:00:14]} 32. Qf1 {[%clk 0:01:17]}  Bf6 {[%clk 0:00:14]} 33. h4 {[%clk 0:01:12]}  Rd7 {[%clk 0:00:10]} 34. Qe2 {[%clk 0:01:10]}  Qd8 {[%clk 0:00:09]} 35. Rh1 {[%clk 0:01:07]}  Qe7 {[%clk 0:00:09]} 36. Qe3 {[%clk 0:01:05]}  Nc6 {[%clk 0:00:02]} 37. Bxf6 {[%clk 0:01:02]}  Qxf6 {[%clk 0:00:00]} 38. g5 {[%clk 0:01:01]} 1-0

[Event "December 12 Late 2023"]
[Site "https://www.chess.com"]
[Date "2023.12.12"]
[Round "3"]
[White "Nita, Lucian"]
[Black "Manfroi, Alexander Giannini"]
[Result "1-0"]
[Board "144"]
[TimeControl "180+1"]
[WhiteFideId "1206923"]
[BlackFideId "22739335"]
[WhiteElo "2358"]
[BlackElo "2197"]
[WhiteTeam "ROU"]
[BlackTeam "BRA"]
[WhiteClock "0:00:20"]
[BlackClock "0:00:14"]

1. e4 {[%clk 0:03:00]}  e5 {[%clk 0:03:00]} 2. Nf3 {[%clk 0:03:00]}  Nc6 {[%clk 0:03:01]} 3. Bb5 {[%clk 0:03:00]}  a6 {[%clk 0:03:01]} 4. Ba4 {[%clk 0:02:58]}  d6 {[%clk 0:03:01]} 5. O-O {[%clk 0:02:57]}  Bg4 {[%clk 0:03:01]} 6. c3 {[%clk 0:02:56]}  Qf6 {[%clk 0:02:59]} 7. d3 {[%clk 0:02:53]}  h5 {[%clk 0:02:52]} 8. Nbd2 {[%clk 0:02:52]}  g5 {[%clk 0:02:52]} 9. h3 {[%clk 0:02:49]}  Bd7 {[%clk 0:02:52]} 10. Nh2 {[%clk 0:02:31]}  Be7 {[%clk 0:02:15]} 11. Qf3 {[%clk 0:02:27]}  Qg6 {[%clk 0:02:00]} 12. Bxc6 {[%clk 0:02:03]}  bxc6 {[%clk 0:01:59]} 13. g4 {[%clk 0:02:01]}  hxg4 {[%clk 0:01:55]} 14. Nxg4 {[%clk 0:01:56]}  Bxg4 {[%clk 0:01:49]} 15. hxg4 {[%clk 0:01:49]}  O-O-O {[%clk 0:01:26]} 16. Kg2 {[%clk 0:01:45]}  Nf6 {[%clk 0:01:18]} 17. Qf5+ {[%clk 0:01:40]}  Qxf5 {[%clk 0:01:14]} 18. gxf5 {[%clk 0:01:40]}  Nh5 {[%clk 0:01:09]} 19. Nb3 {[%clk 0:01:26]}  Nf4+ {[%clk 0:01:02]} 20. Bxf4 {[%clk 0:01:24]}  gxf4 {[%clk 0:01:03]} 21. Rh1 {[%clk 0:01:22]}  Rdg8+ {[%clk 0:00:48]} 22. Kf3 {[%clk 0:01:21]}  Kd7 {[%clk 0:00:39]} 23. Rxh8 {[%clk 0:01:16]}  Rxh8 {[%clk 0:00:40]} 24. Rg1 {[%clk 0:01:15]}  Bf6 {[%clk 0:00:36]} 25. Nd2 {[%clk 0:01:14]}  Rh3+ {[%clk 0:00:34]} 26. Ke2 {[%clk 0:01:14]}  Rh2 {[%clk 0:00:34]} 27. Nf3 {[%clk 0:01:13]}  Rh5 {[%clk 0:00:31]} 28. Rg8 {[%clk 0:01:11]}  Bd8 {[%clk 0:00:29]} 29. Rg7 {[%clk 0:01:01]}  Ke8 {[%clk 0:00:27]} 30. d4 {[%clk 0:00:58]}  f6 {[%clk 0:00:22]} 31. Rg1 {[%clk 0:00:41]}  Kd7 {[%clk 0:00:18]} 32. Rg7+ {[%clk 0:00:40]}  Ke8 {[%clk 0:00:18]} 33. Kf1 {[%clk 0:00:38]}  Rh1+ {[%clk 0:00:18]} 34. Rg1 {[%clk 0:00:38]}  Rxg1+ {[%clk 0:00:18]} 35. Nxg1 {[%clk 0:00:34]}  c5 {[%clk 0:00:18]} 36. d5 {[%clk 0:00:34]}  Kd7 {[%clk 0:00:18]} 37. Ke2 {[%clk 0:00:32]}  c6 {[%clk 0:00:19]} 38. c4 {[%clk 0:00:30]}  cxd5 {[%clk 0:00:18]} 39. cxd5 {[%clk 0:00:30]}  Bb6 {[%clk 0:00:18]} 40. Nf3 {[%clk 0:00:29]}  Bd8 {[%clk 0:00:16]} 41. Nd2 {[%clk 0:00:29]}  Kc7 {[%clk 0:00:16]} 42. Nc4 {[%clk 0:00:29]}  Kd7 {[%clk 0:00:13]} 43. Kf3 {[%clk 0:00:29]}  Ke7 {[%clk 0:00:13]} 44. Kg4 {[%clk 0:00:29]}  Kf7 {[%clk 0:00:13]} 45. Kh5 {[%clk 0:00:29]}  Kg7 {[%clk 0:00:14]} 46. Nxd6 {[%clk 0:00:28]}  Be7 {[%clk 0:00:13]} 47. Nc4 {[%clk 0:00:28]}  Bd8 {[%clk 0:00:12]} 48. Kg4 {[%clk 0:00:27]}  Kf7 {[%clk 0:00:12]} 49. Kh5 {[%clk 0:00:27]}  Kg7 {[%clk 0:00:12]} 50. d6 {[%clk 0:00:26]}  Kf7 {[%clk 0:00:13]} 51. Kh6 {[%clk 0:00:26]}  Ke8 {[%clk 0:00:11]} 52. Kg7 {[%clk 0:00:26]}  Kd7 {[%clk 0:00:12]} 53. Kf7 {[%clk 0:00:26]}  Kc6 {[%clk 0:00:13]} 54. Ke6 {[%clk 0:00:26]}  Kb5 {[%clk 0:00:13]} 55. b3 {[%clk 0:00:26]}  a5 {[%clk 0:00:13]} 56. Kd7 {[%clk 0:00:26]}  Bb6 {[%clk 0:00:11]} 57. Nxb6 {[%clk 0:00:26]}  Kxb6 {[%clk 0:00:12]} 58. Ke6 {[%clk 0:00:26]}  a4 {[%clk 0:00:13]} 59. d7 {[%clk 0:00:26]}  axb3 {[%clk 0:00:13]} 60. axb3 {[%clk 0:00:26]}  Kb5 {[%clk 0:00:13]} 61. d8=Q {[%clk 0:00:26]}  Kb4 {[%clk 0:00:14]} 62. Qd5 {[%clk 0:00:25]}  Kc3 {[%clk 0:00:15]} 63. Qc4+ {[%clk 0:00:25]}  Kd2 {[%clk 0:00:14]} 64. Kxf6 {[%clk 0:00:25]}  Ke1 {[%clk 0:00:13]} 65. Kxe5 {[%clk 0:00:24]}  Kxf2 {[%clk 0:00:14]} 66. Kxf4 {[%clk 0:00:24]}  Ke1 {[%clk 0:00:14]} 67. Qc2 {[%clk 0:00:21]}  Kf1 {[%clk 0:00:13]} 68. Kf3 {[%clk 0:00:21]}  Kg1 {[%clk 0:00:14]} 69. Qg2# {[%clk 0:00:20]} 1-0

[Event "December 12 Late 2023"]
[Site "https://www.chess.com"]
[Date "2023.12.12"]
[Round "3"]
[White "Gruzman, Ilya"]
[Black "Nadera, Barlo A."]
[Result "1-0"]
[Board "146"]
[TimeControl "180+1"]
[WhiteFideId "2812703"]
[BlackFideId "5200598"]
[WhiteElo "2358"]
[BlackElo "2167"]
[WhiteTeam "ISR"]
[BlackTeam "PHI"]
[WhiteClock "0:01:38"]
[BlackClock "0:00:00"]

1. d4 {[%clk 0:02:59]}  d5 {[%clk 0:00:15]} 2. c4 {[%clk 0:02:59]}  e6 {[%clk 0:00:14]} 3. Nc3 {[%clk 0:02:59]}  c6 {[%clk 0:00:14]} 4. e3 {[%clk 0:02:58]}  Nf6 {[%clk 0:00:13]} 5. Nf3 {[%clk 0:02:59]}  Nbd7 {[%clk 0:00:13]} 6. Bd3 {[%clk 0:02:59]}  dxc4 {[%clk 0:00:13]} 7. Bxc4 {[%clk 0:03:00]}  b5 {[%clk 0:00:13]} 8. Bd3 {[%clk 0:03:00]}  Bb7 {[%clk 0:00:13]} 9. O-O {[%clk 0:02:58]}  Rc8 {[%clk 0:00:13]} 10. a4 {[%clk 0:02:56]}  b4 {[%clk 0:00:13]} 11. Ne4 {[%clk 0:02:56]}  c5 {[%clk 0:00:12]} 12. Nxc5 {[%clk 0:02:45]}  Bxc5 {[%clk 0:00:09]} 13. dxc5 {[%clk 0:02:45]}  Nxc5 {[%clk 0:00:10]} 14. Bb5+ {[%clk 0:02:39]}  Ke7 {[%clk 0:00:10]} 15. Qe2 {[%clk 0:02:34]}  a5 {[%clk 0:00:10]} 16. Rd1 {[%clk 0:02:19]}  Qb6 {[%clk 0:00:10]} 17. Ne5 {[%clk 0:02:13]}  Rhd8 {[%clk 0:00:10]} 18. Nc4 {[%clk 0:02:13]}  Qc7 {[%clk 0:00:09]} 19. f3 {[%clk 0:02:08]}  Rxd1+ {[%clk 0:00:07]} 20. Qxd1 {[%clk 0:02:09]}  Rd8 {[%clk 0:00:07]} 21. Qe2 {[%clk 0:02:10]}  Bd5 {[%clk 0:00:04]} 22. Nd2 {[%clk 0:01:48]}  Bb7 {[%clk 0:00:03]} 23. e4 {[%clk 0:01:44]}  h6 {[%clk 0:00:02]} 24. Nc4 {[%clk 0:01:43]}  Qb8 {[%clk 0:00:02]} 25. Be3 {[%clk 0:01:43]}  Nd3 {[%clk 0:00:00]} 26. Nxa5 {[%clk 0:01:38]} 1-0

[Event "December 12 Late 2023"]
[Site "https://www.chess.com"]
[Date "2023.12.12"]
[Round "3"]
[White "Ward, Ieuan C"]
[Black "Hartikainen, Jarmo"]
[Result "1-0"]
[Board "148"]
[TimeControl "180+1"]
[WhiteFideId "406627"]
[BlackFideId "503134"]
[WhiteElo "2344"]
[BlackElo "2131"]
[WhiteTeam "ENG"]
[BlackTeam "FIN"]
[WhiteClock "0:01:28"]
[BlackClock "0:00:00"]

1. e4 {[%clk 0:02:59]}  c5 {[%clk 0:02:59]} 2. Nf3 {[%clk 0:02:59]}  Nc6 {[%clk 0:02:59]} 3. d4 {[%clk 0:03:00]}  cxd4 {[%clk 0:03:00]} 4. c3 {[%clk 0:03:01]}  d5 {[%clk 0:02:56]} 5. exd5 {[%clk 0:03:00]}  Qxd5 {[%clk 0:02:56]} 6. cxd4 {[%clk 0:03:01]}  Bg4 {[%clk 0:02:56]} 7. Be2 {[%clk 0:03:02]}  e6 {[%clk 0:02:55]} 8. Nc3 {[%clk 0:03:02]}  Qa5 {[%clk 0:02:55]} 9. O-O {[%clk 0:03:00]}  Nf6 {[%clk 0:02:55]} 10. h3 {[%clk 0:02:57]}  Bh5 {[%clk 0:02:54]} 11. Be3 {[%clk 0:02:57]}  Be7 {[%clk 0:02:54]} 12. a3 {[%clk 0:02:57]}  O-O {[%clk 0:02:54]} 13. Rc1 {[%clk 0:02:55]}  a6 {[%clk 0:02:27]} 14. Qb3 {[%clk 0:02:53]}  Qd8 {[%clk 0:01:57]} 15. Rfd1 {[%clk 0:02:53]}  Na5 {[%clk 0:01:44]} 16. Qa4 {[%clk 0:02:51]}  b5 {[%clk 0:01:40]} 17. Qc2 {[%clk 0:02:50]}  Rc8 {[%clk 0:01:34]} 18. Qb1 {[%clk 0:02:47]}  Nc4 {[%clk 0:01:31]} 19. Bxc4 {[%clk 0:02:30]}  Bxf3 {[%clk 0:01:19]} 20. Be2 {[%clk 0:02:21]}  Bxe2 {[%clk 0:01:15]} 21. Nxe2 {[%clk 0:02:22]}  Nd5 {[%clk 0:01:14]} 22. Qe4 {[%clk 0:02:11]}  Bd6 {[%clk 0:00:44]} 23. Nc3 {[%clk 0:01:55]}  Nxc3 {[%clk 0:00:43]} 24. Rxc3 {[%clk 0:01:50]}  Rxc3 {[%clk 0:00:42]} 25. bxc3 {[%clk 0:01:51]}  Bxa3 {[%clk 0:00:42]} 26. Ra1 {[%clk 0:01:52]}  Qd6 {[%clk 0:00:42]} 27. Bf4 {[%clk 0:01:47]}  Qe7 {[%clk 0:00:34]} 28. Qc6 {[%clk 0:01:45]}  b4 {[%clk 0:00:20]} 29. Bd6 {[%clk 0:01:38]}  Qe8 {[%clk 0:00:10]} 30. Qxa6 {[%clk 0:01:37]}  bxc3 {[%clk 0:00:05]} 31. Qxa3 {[%clk 0:01:34]}  c2 {[%clk 0:00:03]} 32. Bxf8 {[%clk 0:01:33]}  Qc6 {[%clk 0:00:03]} 33. Bc5 {[%clk 0:01:30]}  h5 {[%clk 0:00:01]} 34. Rc1 {[%clk 0:01:30]}  Qe4 {[%clk 0:00:00]} 35. Qe3 {[%clk 0:01:28]} 1-0